Cogmind - Beta 16.1 @@@ ROGUE MODE // 2026.03.09 @ 13:05:50 Player: halo Result: Destroyed by G-47 Trooper with Particle Gun Performance ------------- Evolutions (2) 1000 Regions Visited (5) 1000 Robots Destroyed (17) 85 Value Destroyed (387) 387 Prototype IDs (1) 20 Alien Tech Used (0) 0 Bonus (0) 0 TOTAL SCORE: 2492 Bonus ------- None Cogmind --------- Core Integrity 0/550 Matter 299/300 Energy 100/100 System Corruption 0% Temperature Cool (27) Movement Core (350) Ox6 Location -8/Materials Parts ------- > --- POWER (2) -------- (None) > --- PROPULSION (2) --- (None) > --- UTILITY (5) ------ Large Storage Unit Visual Processing Unit Targeting Computer > --- WEAPON (2) ------- (None) > --- INVENTORY (15) --- Ion Engine Aluminum Leg Aluminum Leg Assault Rifle Assault Rifle Peak State ------------ > --- POWER ------------ Light Ion Engine Light Nuclear Core > --- PROPULSION ------- Light Treads Light Treads > --- UTILITY ---------- Large Storage Unit Medium Matter Pod Structural Scanner Visual Processing Unit Light Armor Plating > --- WEAPON ----------- Assault Rifle Improved Assault Rifle > --- INVENTORY -------- Ion Engine Aluminum Leg Aluminum Leg Assault Rifle Assault Rifle [Rating: 16] Favorites ----------- Power Light Nuclear Core Engine Ion Engine Power Core Light Nuclear Core Propulsion Light Treads Treads Light Treads Utility Large Storage Unit Device Structural Scanner Storage Large Storage Unit Processor Visual Processing Unit Protection Light Armor Plating Weapon Assault Rifle Ballistic Gun Assault Rifle Build | -11 -10 -10 -9 -9 -8 ------- Run | Yrd Mat Min Mat Min Mat Slots Evolved 4 | . . . 2 . 2 Power 1 | . . . . . 1 Propulsion . | . . . . . . Utility 3 | . . . 2 . 1 Weapon . | . . . . . . Parts Attached 15 | 6 2 1 3 . 3 Power 3 | 1 . 1 . . 1 Engine 2 | 1 . . . . 1 Core 1 | . . 1 . . . Reactor . | . . . . . . Propulsion 2 | 2 . . . . . Treads 2 | 2 . . . . . Leg . | . . . . . . Wheel . | . . . . . . Hover . | . . . . . . Flight . | . . . . . . Utility 7 | 1 2 . 2 . 2 Device 1 | . 1 . . . . Storage 3 | 1 1 . 1 . . Processor 2 | . . . 1 . 1 Hackware . | . . . . . . Protection 1 | . . . . . 1 Artifact . | . . . . . . Weapon 3 | 2 . . 1 . . Energy Gun . | . . . . . . Energy Cannon . | . . . . . . Ballistic Gun 3 | 2 . . 1 . . Ballistic Cannon . | . . . . . . Launcher . | . . . . . . Special Weapon . | . . . . . . Impact Weapon . | . . . . . . Slashing Weapon . | . . . . . . Piercing Weapon . | . . . . . . Special Melee Weapon . | . . . . . . Unidentified Prototypes 1 | . . . 1 . . Parts Lost 8 | . . . . . 8 Power 2 | . . . . . 2 Propulsion 2 | . . . . . 2 Utility 2 | . . . . . 2 Weapon 2 | . . . . . 2 Highest Loss Streak 8 | . . . . . 8 To Critical Strikes . | . . . . . . Average Backups 5 | 2 4 6 5 7 5 Power 1 | . 1 2 2 2 1 Propulsion 1 | 1 2 2 2 2 2 Utility . | . . 1 . 1 . Weapon 1 | . 1 1 1 2 2 Tool/Special . | . . . . . . Unused Backups 5 | 1 . . . . 4 Power 1 | . . . . . 1 Propulsion 3 | 1 . . . . 2 Utility . | . . . . . . Weapon 1 | . . . . . 1 Tool/Special . | . . . . . . Average Slot Usage (%) 96 | . 97 100 95 100 84 Engine 3 | . 14 1 . . 6 Core 8 | . . 12 11 11 6 Treads 23 | . 28 28 22 22 14 Device 10 | . 12 14 11 11 3 Storage 18 | . 14 14 22 22 17 Processor 6 | . . . 6 11 14 Ballistic Gun 23 | . 28 28 22 22 15 Peak Build Rating 16 | 6 7 9 14 14 16 Average Rating 10 | 4 6 8 12 14 13 On Entrance 8 | . 6 7 9 14 14 Avg Prop Armor Cover (%) . | . . . . . . Naked Turns . | . . . . . . Heaviest Build 39 | 14 30 30 33 33 39 Greatest Support 40 | 40 40 40 40 40 40 Greatest Overweight (x) . | . . . . . . Average Overweight (x) . | . . . . . . Largest Inventory Capacity 15 | 8 15 15 15 15 15 Average Capacity 14 | 7 14 15 15 15 15 Most Carried 7 | 4 6 7 7 7 6 Average Carried 5 | 3 4 6 5 7 5 Final Capacity 15 | 8 15 15 15 15 15 Final Carried 7 | 4 6 6 7 7 5 Class Distribution -------------------- 100% | Mutant Dominant Class ---------------- Mutant | -10/Materials Mutant | -10/Mines Mutant | -9/Materials Mutant | -9/Mines Mutant | -8/Materials Resources | -11 -10 -10 -9 -9 -8 ----------- Run | Yrd Mat Min Mat Min Mat Matter Collected 619 | 179 177 118 115 30 . Remotely . | . . . . . . Salvage Created 461 | . 155 35 117 61 93 Parts 31 | . 6 3 13 7 2 Haulers Intercepted . | . . . . . . Recyclers Shooed . | . . . . . . Parts Field Recycled . | . . . . . . Retrieved Matter . | . . . . . . Parts Self-Destructed . | . . . . . . Prevented . | . . . . . . Parts Restored . | . . . . . . Kills | -11 -10 -10 -9 -9 -8 ------- Run | Yrd Mat Min Mat Min Mat Combat Hostiles Destroyed 14 | . 3 1 4 4 2 Guns 14 | . 3 1 4 4 2 Classes Destroyed 5 | . 2 . 2 . 1 Worker 1 | . . . 1 . . Watcher 2 | . 1 . 1 . . Swarmer 7 | . . . 3 4 . Grunt 6 | . 3 1 1 . 1 Duelist 1 | . . . . . 1 Best Kill Streak 4 | . 2 1 4 4 2 Combat Bots Only 4 | . 2 1 3 4 2 Max Kills in Single Turn 2 | . 1 1 2 1 1 Gunslinging . | . . . . . . Exploded . | . . . . . . Melee . | . . . . . . Uniques/NPCs Destroyed . | . . . . . . Combat | -11 -10 -10 -9 -9 -8 -------- Run | Yrd Mat Min Mat Min Mat Hostile Shots Fired 143 | . 26 1 6 10 100 Missed 32 | . 7 . 2 3 20 Hits 111 | . 19 1 4 7 80 Melee 2 | . . . . . 2 Projectile 109 | . 19 1 4 7 78 Critical Strikes 4 | . . . . . 4 Damage Taken 1604 | . 208 16 26 55 1299 Core 640 | . 75 . 13 . 552 Absorbed by Shields . | . . . . . . Core Remaining (%) 88 | 100 . 70 . 96 . Volleys Fired 54 | . 13 1 15 6 19 Largest 2 | . 2 2 2 2 2 Hottest 43 | . 40 40 43 43 43 Shots Fired 105 | . 26 2 30 12 35 Gun 105 | . 26 2 30 12 35 Cannon . | . . . . . . Launcher . | . . . . . . Special . | . . . . . . Kinetic 105 | . 26 2 30 12 35 Thermal . | . . . . . . Explosive . | . . . . . . Electromagnetic . | . . . . . . Robot Hit Streak 8 | . 7 2 3 4 8 Robot Miss Streak 4 | . 2 . 4 1 3 Penetration Max . | . . . . . . Secondary Targets . | . . . . . . Shots Hit Robots 62 | . 17 2 11 7 25 Core Hits 31 | . 9 2 8 4 8 Critical Kills . | . . . . . . Critical Parts Destroyed . | . . . . . . Critical Strikes . | . . . . . . Melee Attacks . | . . . . . . Impact . | . . . . . . Slashing . | . . . . . . Piercing . | . . . . . . Sneak Attacks . | . . . . . . Combat Hostiles . | . . . . . . Follow-up Attacks . | . . . . . . Damage Inflicted 930 | . 235 32 152 103 408 Guns 918 | . 235 26 146 103 408 Cannons . | . . . . . . Explosions . | . . . . . . Melee . | . . . . . . Ramming 12 | . . 6 6 . . Kinetic 918 | . 235 26 146 103 408 Thermal . | . . . . . . Explosive . | . . . . . . Electromagnetic . | . . . . . . Impact . | . . . . . . Slashing . | . . . . . . Piercing . | . . . . . . Highest Corruption . | . . . . . . Average Corruption . | . . . . . . Corruption Purged . | . . . . . . Corruption Blocked . | . . . . . . Overload Shots . | . . . . . . Overflow Damage . | . . . . . . Projectiles . | . . . . . . Explosions . | . . . . . . Melee . | . . . . . . Knockbacks . | . . . . . . Impact . | . . . . . . Kinetic . | . . . . . . Secondary . | . . . . . . Self-Inflicted Damage . | . . . . . . Shots . | . . . . . . Rammed 3 | . . 1 2 . . Targets Rammed 3 | . . 1 2 . . Kicked . | . . . . . . Crushed . | . . . . . . Highest Temperature 195 | . 15 2 . . 195 Average Temperature 89 | . 7 2 . . 107 Received Heat Transfer 897 | . 114 9 . . 774 Siege Activations . | . . . . . . Martial Activations . | . . . . . . Shielding Activations . | . . . . . . Robots Disrupted . | . . . . . . Combat Hostiles . | . . . . . . Robots Corrupted . | . . . . . . Combat Hostiles . | . . . . . . Parts Fried . | . . . . . . Impact Corruptions . | . . . . . . Robots Melted . | . . . . . . Combat Hostiles . | . . . . . . Parts Melted . | . . . . . . Heat Transferred . | . . . . . . Parts Sabotaged . | . . . . . . Parts Stolen . | . . . . . . Parts Stripped . | . . . . . . Power Chain Reactions . | . . . . . . Alert | -11 -10 -10 -9 -9 -8 ------- Run | Yrd Mat Min Mat Min Mat Maximum Alert Level . | . . . . . . Low Security (%) 100 | 100 100 100 100 100 100 Level 1 . | . . . . . . Level 2 . | . . . . . . Level 3 . | . . . . . . Level 4 . | . . . . . . Level 5 . | . . . . . . High Security . | . . . . . . Max Security . | . . . . . . Peak Influence 96 | . 60 20 80 96 30 Initial 11 | . . . . 11 . Average 19 | . 22 3 27 33 2 Influence Increases 399 | . 82 20 117 120 60 Destroy 0b10 Robot/C 280 | . 60 20 80 80 40 Destroy 0b10 Robot/NC 15 | . 5 . 10 . . Destroy Leader 54 | . 12 . 12 10 20 Successful Hack 5 | . 5 . . . . Disable Machine 30 | . . . 15 15 . Lose Combat Pursuer 15 | . . . . 15 . Influence Decreases 399 | . 82 20 87 150 60 Entered New Map 19 | . . . . 19 . Time Decay 320 | . 82 20 87 131 . Lost Part 60 | . . . . . 60 Squads Dispatched 2 | . 1 . . . 1 Investigation 1 | . . . . . 1 Extermination . | . . . . . . Reinforcement 1 | . 1 . . . . Assault . | . . . . . . Garrison . | . . . . . . Intercept . | . . . . . . Searches Triggered . | . . . . . . Construction Impeded . | . . . . . . Haulers Reinforced . | . . . . . . Active Scanning Responses . | . . . . . . Cargo Convoy Interrupts . | . . . . . . Stealth | -11 -10 -10 -9 -9 -8 --------- Run | Yrd Mat Min Mat Min Mat Distress Signals 2 | . . . 1 . 1 Communications Jammed . | . . . . . . Distress Signals . | . . . . . . Times Spotted 26 | . 7 1 6 5 7 Peak Tracking Total 7 | . 6 . 3 4 7 Tactical Retreats 1 | . . . . 1 . Traps | -11 -10 -10 -9 -9 -8 ------- Run | Yrd Mat Min Mat Min Mat Traps Triggered . | . . . . . . Indirectly . | . . . . . . Trap Hack Attempts . | . . . . . . Triggered . | . . . . . . Disarmed . | . . . . . . Reprogrammed 1 | . . . 1 . . Reused . | . . . . . . Traps Extracted . | . . . . . . Installed . | . . . . . . Triggered . | . . . . . . Machines | -11 -10 -10 -9 -9 -8 ---------- Run | Yrd Mat Min Mat Min Mat Machines Disabled 2 | . . . 1 1 . Max in Single Turn 1 | . . . 1 1 . Machines Repaired . | . . . . . . Machines Dismantled . | . . . . . . Machines Sabotaged . | . . . . . . Overloaded Fab Kills . | . . . . . . Hacking | -11 -10 -10 -9 -9 -8 --------- Run | Yrd Mat Min Mat Min Mat Machines Accessed 5 | . 1 . 3 . 1 Terminals 3 | . 1 . 2 . . Fabricators . | . . . . . . Repair Stations 1 | . . . 1 . . Recycling Units . | . . . . . . Scanalyzers 1 | . . . . . 1 Garrison Access . | . . . . . . Total Hacks 15 | . 3 . 9 . 3 Successful 10 | . 2 . 6 . 2 Failed 5 | . 1 . 3 . 1 Catastrophic . | . . . . . . Database Lockouts . | . . . . . . Manual . | . . . . . . Terminals 10 | . 3 . 7 . . Fabricators . | . . . . . . Repair Stations 2 | . . . 2 . . Recycling Units . | . . . . . . Scanalyzers 3 | . . . . . 3 Garrison Access . | . . . . . . Terminal Hacks 7 | . 2 . 5 . . Record 3 | . . . 3 . . Alert Level 1 | . . . 1 . . Reprogram Traps 1 | . . . 1 . . Dispatch Records 1 | . 1 . . . . Hauler Manifests 1 | . 1 . . . . Fabricator Hacks . | . . . . . . Repair Station Hacks 1 | . . . 1 . . Scan Component 1 | . . . 1 . . Recycling Unit Hacks . | . . . . . . Scanalyzer 2 | . . . . . 2 Insert Component 1 | . . . . . 1 Analyze 1 | . . . . . 1 Garrison Access Hacks . | . . . . . . Unauthorized Hacks . | . . . . . . Terminals . | . . . . . . Fabricators . | . . . . . . Repair Stations . | . . . . . . Recycling Units . | . . . . . . Scanalyzers . | . . . . . . Garrison Access . | . . . . . . Data Cores Recovered . | . . . . . . Used . | . . . . . . Hacking Detections 4 | . 1 . 2 . 1 Full Trace Events 2 | . 1 . . . 1 Feedback Events . | . . . . . . Feedback Blocked . | . . . . . . Robot Schematics Acquired . | . . . . . . Robots Built . | . . . . . . Authchips . | . . . . . . Time . | . . . . . . Total Robot Build Rating . | . . . . . . Part Schematics Acquired 1 | . . . . . 1 Parts Built . | . . . . . . Authchips . | . . . . . . Time . | . . . . . . Total Part Build Rating . | . . . . . . Part Studies Acquired . | . . . . . . Parts Repaired . | . . . . . . Time . | . . . . . . Parts Recycled . | . . . . . . Recycled Matter . | . . . . . . Retrieved Matter . | . . . . . . Retrieved Components . | . . . . . . Parts Scanalyzed 1 | . . . . . 1 Part Schematics Acquired 1 | . . . . . 1 Parts Damaged . | . . . . . . Bothacking | -11 -10 -10 -9 -9 -8 ------------ Run | Yrd Mat Min Mat Min Mat Used RIF Installer . | . . . . . . Robots Hacked . | . . . . . . Non-combat . | . . . . . . Combat . | . . . . . . Robot Hacks Applied . | . . . . . . Relay Couplers Released . | . . . . . . Fabnet Peak Effective % . | . . . . . . Robots Rewired . | . . . . . . Allies Hacked . | . . . . . . Hacks Repelled . | . . . . . . Allies | -11 -10 -10 -9 -9 -8 -------- Run | Yrd Mat Min Mat Min Mat Total Allies . | . . . . . . Largest Group . | . . . . . . Highest-Rated Group . | . . . . . . Highest-Rated Ally . | . . . . . . Total Orders . | . . . . . . Ally Attacks . | . . . . . . Total Damage . | . . . . . . Kills . | . . . . . . Allies Corrupted . | . . . . . . Allies Melted . | . . . . . . Intel | -11 -10 -10 -9 -9 -8 ------- Run | Yrd Mat Min Mat Min Mat Active Infowar (turns) 1130 | . 191 183 252 375 129 Optics 669 | . . . 165 375 129 Structural 1046 | . 191 183 252 375 45 Robot Analysis Total . | . . . . . . Derelict Logs Recovered 1 | . . . . 1 . Drone Launches . | . . . . . . Drone Recoveries . | . . . . . . Exploration | -11 -10 -10 -9 -9 -8 ------------- Run | Yrd Mat Min Mat Min Mat Turns Passed 1283 | 133 211 183 252 375 129 Spaces Moved 654 | 79 100 92 124 224 35 Core 9 | 9 . . . . . Treads 645 | 70 100 92 124 224 35 Legs . | . . . . . . Wheels . | . . . . . . Hover . | . . . . . . Flight . | . . . . . . Fastest Speed 50 | 50 160 160 160 160 160 Average Speed 158 | 147 160 160 160 160 160 Slowest Speed 160 | 160 160 160 160 160 160 Overloaded Moves . | . . . . . . Propulsion Burnouts . | . . . . . . Robots Hopped . | . . . . . . Potential Cave-ins . | . . . . . . Cave-ins Triggered . | . . . . . . Exploration Rate (%) 20 | 5 13 24 21 56 6 Regions Visited 5 Branch Regions 2 Pre-discovered Areas 1 | . . . . 1 . Known Exits Taken . | . . . . . . Unknown Exits Taken 5 | 1 1 1 1 1 . Scrap Searched . | . . . . . . Spaces Dug . | . . . . . . Terrain Destroyed . | . . . . . . Melee . | . . . . . . Projectile . | . . . . . . AOE . | . . . . . . Terrain Rammed . | . . . . . . Walls Destroyed . | . . . . . . Machines Disabled . | . . . . . . Actions | -11 -10 -10 -9 -9 -8 --------- Run | Yrd Mat Min Mat Min Mat Total 795 | 96 125 125 146 229 74 Wait 50 | . 6 29 . . 15 Move 649 | 78 99 91 123 223 35 Hop . | . . . . . . Pick Up 20 | 11 4 1 3 . 1 Fast Attach . | . . . . . . Attach 12 | 6 1 . 2 . 3 Detach . | . . . . . . Swap 3 | . 1 1 1 . . Drop 4 | 1 1 1 . . 1 Fire 54 | . 13 1 15 6 19 Melee . | . . . . . . Ram . | . . . . . . Kick . | . . . . . . Crush 3 | . . 1 2 . . Escape Stasis . | . . . . . . Rewire . | . . . . . . Trap . | . . . . . . Miscellaneous . | . . . . . . Route ------- -11/Scrapyard -10/Materials -10/Mines -9/Materials -9/Mines (discovered 2 exits: *Mat x2) -8/Materials (discovered 1 exit: [*Sto]) History --------- Turn | Location | Event 7 | -11/Scrapyard | Discovered new exit (range 15) 134 | -11/Scrapyard | Entered Materials 214 | -10/Materials | Met 8R-AWN 307 | -10/Materials | Build established: Mutant 326 | -10/Materials | Discovered new exit (range 6) 345 | -10/Materials | Entered Mines 348 | -10/Mines | Followed 8R-AWN into the Mines 354 | -10/Mines | Met a Derelict bent on vengeance 367 | -10/Mines | Discovered new exit (range 9) 413 | -10/Mines | Assembled infested the area 418 | -10/Mines | Assisted by a Guerilla fighting off Assembled 528 | -10/Mines | Entered Materials 528 | -9/Materials | Evolved 2 slots: Utility x2 753 | -9/Materials | Discovered new exit (range 10) 780 | -9/Materials | Entered Mines 915 | -9/Mines | Discovered new exit (range 11) 1002 | -9/Mines | Discovered new exit (range 17) 1067 | -9/Mines | Found a hidden stash of uninstalled traps 1155 | -9/Mines | Entered Materials 1155 | -8/Materials | Evolved 2 slots: Power x1, Utility x1 1178 | -8/Materials | Discovered new exit (range 11) 1272 | -8/Materials | Core integrity fell below 50% 1281 | -8/Materials | Core integrity fell below 20% 1284 | -8/Materials | Destroyed by G-47 Trooper with Particle Gun Last Messages --------------- Scanning: Assault Rifle... Schematic downloaded. 01211_ ALERT: Suspicious activity at Scanalyzer M001. Dispatching Investigation squad. 01215_ Critical hit (Burn: +37). 01238_ W-25 Informer sends out distress signal. 01240_ G-47 Trooper destroyed. 01244_ Lgt. Armor Plating destroyed. 01246_ Lgt. Nuclear Core destroyed. 01248_ Lgt. Ion Engine destroyed. 01255_ L-31 Rogue destroyed. 01256_ Lgt. Treads destroyed. 01260_ G-47 Trooper destroyed. 01262_ Imp. Assault Rifle destroyed. 01264_ M-13 Machinist repairs G-47 Trooper. 01266_ Critical hit (Burn: +37). 01268_ Assault Rifle destroyed. 01270_ Med. Matter Pod destroyed. 01272_ Critical hit (Burn: +37). 01280_ M-13 Machinist repairs G-47 Trooper. Map ----- +----------------------------------------------------+ | ?????????????????????????????????????????????????? | | ?????????????????????????????????????????????????? | | ?????????????????????????????????????????????????? | | ?????????????????????????????????????????????????? | | ?????????????????????????????????????????????????? | | ?????????????????????????????????????????????????? | | ?????????????????????????????????????????????????? | | ?????????????????????????????????????????????????? | | ?????????????????????????????????????????????????? | | ?????????????????????????????????????????????????? | | ??????###????#######?????????????????????????????? | | ??????###????#######??##?????????????????????????? | | ??????## ??? # # ?? T ????????????????????????? | | ??????## """? # # ??? ????????????????????????? | | ??????## """ # # ??? ????????????????????????? | | ??????## """ + + ??? ????????????????????????? | | ??????## # # ??? ????????????????????????? | | ???##### # # ? ##??????????????????????? | | # ?############ ######;###?????????????????????? | | # ##### #############???????????? | | # ????######## ############???????????? | | ??????######## " # ##???????????? | | ????????????## % # """" ##???????????? | | ????????????## #### ! # """" ##???????????? | | ????????????## ####gr # """" ##???????????? | | ????????????## ###m @# ##???????????? | | ????????????##! !### + "" ! ##???????????? | | ????????????###!!!!#### # S"" ##???????????? | | ????????????########### g# "" ##???????????? | | ?????????????########## g ############???????????? | | ????????????????????## ###########???????????? | | ????????????????????## % ??????????????????????? | | ????????????????????## < ?????????????????????? | | ????????????????????## ???????????????????? | | ????????????????????## ###???????????????????? | | ????????????????????##### ####???????????????????? | | ????????????????????##### # ????????????????????? | | ????????????????????????? # ?????????????????????? | | ????????????????????????? # ?????????????????????? | | ????????????????????????? # ?????????????????????? | | ????????????????????????? ???????????????????????? | | ????????????????????????? ???????????????????????? | | ????????????????????????? ???????????????????????? | | ????????????????????????? ???????????????????????? | | ?????????????????????????????????????????????????? | | ?????????????????????????????????????????????????? | | ?????????????????????????????????????????????????? | | ?????????????????????????????????????????????????? | | ?????????????????????????????????????????????????? | | ?????????????????????????????????????????????????? | +----------------------------------------------------+ Best States ------------- Heat Dissipation 31 Energy Generation 19 Energy Capacity 250 Matter Stores 400 Matter Capacity 400 Sight Range 18 Terrain Scan Density 10 Armor Coverage 150 Evasion (%) 40 Targeting Accuracy 5 Recoil Reduction 2 Item Schematics ----------------- Assault Rifle | -8/Materials | Scanalyzed Robot Schematics ------------------ None Fabricated ------------ Nothing Repaired ---------- Nothing Studied --------- None Alien Tech Used ----------------- None Achievements -------------- Follow The Leader Challenges ------------ None Game ------ Seed TransportTitaniumFist Manual? 0 Play Time 00:23:57 Cumulative 4.4 hours Start 2026.03.09 @ 12:43:13 End 2026.03.09 @ 13:05:50 Sessions 1 Manual Loads 0 Difficulty Rogue Special Mode None Game No. 4 Rogue 4 Adventurer 0 Explorer 0 Win Type - Total 0 Types 0/0/0/0/0/0/0/0/0/0 Lore% 2 Gallery% 7 Achievement% 7 Wizard Run 0 Options --------- Layout 2 ASCII 0 Keyboard 0 Movement Mouse Keybinds 0 Fullscreen 2 Font 24/Smallcaps Map View 50x44 Zoom Use 0% Tactical HUD 1 Map Filters NONE Filters NONE Steam 1 RUN: 258fe671-6f5e-4570-b684-97a5f1882ad7